bitfinex-derivatives/quotes_ETHF0:USTF0_20241105
["timestamp","ask_amount","ask_price","bid_price","bid_amount"]
[1730768105685,0.41673,2401.2,2400.8,0.41679]
[1730768105893,4.00316105,2401.4,2400.6,0.5083]
[1730768106089,0.41673,2401.2,2400.7,0.41681]
[1730768106286,0.41673,2401.2,2401.0,0.41676]
[1730768106484,3.2078,2401.5,2400.8,3.2078]
[1730768106684,4.21216105,2401.7,2401.6,0.41666]
[1730768106887,1.364,2401.8,2401.2,4.24961]
[1730768107084,4.41972105,2402.2,2401.5,3.2078]
[1730768107384,4.00316105,2402.2,2401.5,3.2078]
[1730768107787,4.00316105,2402.2,2402.1,0.41657]
[1730768107987,4.00316105,2402.2,2401.8,3.2078]
[1730768108298,4.00316105,2402.2,2401.9,0.4675]
[1730768108686,4.41972105,2402.2,2401.9,0.88409]
[1730768108996,4.00316105,2402.2,2402.0,0.41659]
[1730768109290,4.00316105,2402.2,2401.8,3.2078]
[1730768109497,4.5718,2402.5,2401.3,0.4686]
[1730768109498,3.2078,2401.9,2401.3,0.4686]
[1730768109699,4.41985105,2401.4,2401.3,0.4686]
[1730768110087,4.00316105,2401.4,2401.3,0.4686]
[1730768110493,4.41985105,2401.4,2401.3,0.4686]
[1730768110887,4.00316105,2401.4,2401.3,0.4686]
[1730768111086,4.41985105,2401.4,2401.3,0.4686]
[1730768111902,45.21985105,2401.4,2401.3,0.4686]
[1730768112488,44.80316105,2401.4,2401.3,0.88531]
[1730768113085,44.80316105,2401.4,2401.3,0.4686]
[1730768113289,45.21985105,2401.4,2401.3,0.4686]
[1730768113896,44.80316105,2401.4,2401.3,0.88531]
[1730768114097,40.8,2401.4,2401.3,0.88531]
[1730768114390,40.8,2401.4,2401.3,5.04931]
[1730768114596,4.41977105,2401.9,2401.7,0.41663]
[1730768114795,0.41664,2401.7,2401.5,3.62446]
[1730768114992,40.8,2401.6,2401.5,3.62446]
[1730768115194,45.21982105,2401.6,2401.5,3.2078]
[1730768115493,0.41667,2401.5,2401.4,0.466]
[1730768120598,40.8,2401.6,2401.5,0.41667]
[1730768120789,40.8,2401.6,2401.5,4.58067]
[1730768121718,1.36705,2402.6,2401.6,1.04165]
[1730768121719,0.62554,2402.3,2401.6,1.04165]
[1730768121911,4.00316105,2402.5,2401.9,0.41659]
[1730768122205,4.00316105,2402.5,2402.0,0.9719]
[1730768122206,0.41658,2402.1,2402.0,0.9719]
[1730768122393,0.41658,2402.1,2402.0,1.38849]
[1730768122596,0.41656,2402.2,2402.0,0.9719]
[1730768122796,40.8,2402.4,2402.3,0.41653]
[1730768123097,0.41654,2402.3,2402.1,0.41655]
[1730768123492,40.8,2402.4,2402.0,0.9719]
[1730768123697,40.8,2402.4,2402.0,1.38847]
[1730768123698,0.41656,2402.2,2402.0,1.38847]
[1730768124491,4.00316105,2402.2,2402.0,0.9719]
[1730768124695,0.41657,2402.1,2402.0,0.9719]
[1730768124900,0.4166,2401.9,2401.8,3.2078]
[1730768127400,0.41662,2401.8,2401.7,0.41664]
[1730768127799,5.04455105,2402.2,2401.7,0.41664]
[1730768128006,0.41661,2401.9,2401.7,3.62444]
[1730768129703,0.41662,2401.8,2401.7,3.62444]
[1730768130210,0.41661,2401.9,2401.7,3.62444]
[1730768130904,0.41662,2401.8,2401.7,3.2078]
[1730768131098,0.41662,2401.8,2401.7,3.62444]
[1730768131297,0.41661,2401.9,2401.7,3.62444]
[1730768131506,0.41662,2401.8,2401.7,3.62444]
[1730768131812,0.41662,2401.8,2401.7,3.2078]
[1730768132008,3.2078,2401.9,2401.6,0.41665]
[1730768132314,0.41662,2401.8,2401.6,0.41665]
[1730768132508,0.41664,2401.7,2401.6,0.41665]
[1730768133311,3.2078,2401.9,2401.6,0.41665]
[1730768133617,0.41664,2401.7,2401.5,0.41666]
[1730768134505,3.2078,2401.9,2401.4,0.41668]
[1730768134506,0.41667,2401.6,2401.4,0.41668]
[1730768135609,0.41669,2401.4,2401.3,3.2078]
[1730768135810,0.41669,2401.4,2400.8,1.62713166]
[1730768135811,0.41674,2401.1,2401.0,3.2078]
[1730768136203,41.21674,2401.1,2401.0,3.2078]
[1730768139101,41.21675,2401.1,2400.9,0.41677]
[1730768139304,0.41676,2401.0,2400.8,0.89658]
[1730768140406,0.41679,2400.8,2400.7,0.4585]
[1730768141518,0.41679,2400.8,2400.4,0.4868]
[1730768141519,0.41685,2400.5,2400.4,0.4868]
[1730768142013,0.41685,2400.5,2400.2,3.2078]
[1730768142014,8.16876105,2400.5,2400.2,3.2078]
[1730768142216,0.41688,2400.3,2400.2,3.2078]
[1730768142611,4.58328,2400.3,2400.2,3.2078]
[1730768143105,7.3742,2400.3,2399.8,0.488]
[1730768143311,4.00316105,2399.9,2399.1,1.62713166]
[1730768143616,3.2078,2400.0,2398.9,3.6958]
[1730768143617,4.00316105,2399.7,2398.9,3.6958]
[1730768143804,40.8,2399.6,2399.2,3.2078]
[1730768144004,40.8,2399.6,2399.5,3.62482]
[1730768144416,40.8,2399.6,2399.3,0.41704]
[1730768144715,40.8,2399.6,2399.4,0.4688]
[1730768144919,0.209,2400.1,2399.5,4.6515]
[1730768145110,0.41693,2400.1,2399.7,3.62478]
[1730768145311,0.41693,2400.1,2399.8,0.41696]
[1730768145505,5.38716105,2400.3,2399.7,3.2078]
[1730768145506,44.80316105,2400.0,2399.7,3.2078]
[1730768145705,44.80316105,2400.0,2399.6,0.41699]
[1730768145706,0.41696,2399.9,2399.6,0.41699]
[1730768146004,0.41695,2399.9,2399.6,0.417]
[1730768146203,45.22010105,2400.0,2399.6,0.417]
[1730768146414,45.22010105,2400.0,2399.5,0.4843]
[1730768146603,41.21694,2400.0,2399.7,0.41698]
[1730768147108,0.41695,2399.9,2399.6,0.41699]
[1730768147308,40.8,2400.0,2399.7,0.41697]
[1730768147309,41.21694,2400.0,2399.7,0.41697]
[1730768147513,40.8,2400.0,2399.7,0.41697]
[1730768147713,40.8,2400.0,2399.5,0.4843]
[1730768148011,0.41696,2399.9,2399.6,0.417]
[1730768148519,5.38716105,2400.3,2399.8,0.41697]
[1730768148818,5.38716105,2400.3,2399.9,0.41695]
[1730768149013,40.8,2400.2,2399.9,0.41695]
[1730768149312,40.8,2400.2,2400.0,0.5]
[1730768149515,0.41692,2400.1,2400.0,0.5]
[1730768149712,41.21691,2400.2,2400.0,0.5]
[1730768149914,40.8,2400.2,2400.0,0.91692]
[1730768150114,40.8,2400.2,2400.1,0.4619]
[1730768151316,41.2169,2400.2,2400.1,0.4619]
[1730768152115,0.4169,2400.2,2400.1,0.4619]
[1730768153216,42.60089,2400.3,2400.1,0.4619]
[1730768153817,42.184,2400.3,2400.1,0.4619]
[1730768154113,0.4169,2400.2,2400.1,0.4619]
[1730768155416,0.41692,2400.1,2400.0,0.5]
[1730768159415,0.41692,2400.1,2399.8,0.5103]
[1730768159416,0.41695,2399.9,2399.8,0.5103]
[1730768159820,0.41697,2399.8,2399.7,3.2078]
[1730768160014,0.41696,2399.9,2399.7,3.62479]
[1730768160321,0.41696,2399.9,2399.7,3.2078]
[1730768161214,48.64518255,2400.3,2399.9,0.41694]
[1730768161416,0.4169,2400.2,2399.9,0.41694]
[1730768161615,0.4169,2400.2,2399.7,3.2078]
[1730768161816,0.4169,2400.2,2399.9,0.41694]
[1730768162124,0.4169,2400.2,2400.0,0.4709]
[1730768162323,0.4169,2400.2,2400.0,0.9339]
[1730768162623,47.26118255,2400.3,2400.0,0.9339]
[1730768162922,47.67807255,2400.3,2400.1,0.41691]
[1730768163516,47.26118255,2400.3,2400.0,0.9339]
[1730768163721,3.2078,2400.3,2400.2,0.4169]
[1730768164121,3.2078,2400.6,2400.5,0.41685]
[1730768164333,3.2078,2400.6,2400.3,0.41687]
[1730768164523,3.62464,2400.6,2400.3,0.41687]
[1730768164719,40.8,2400.5,2400.3,0.41687]
[1730768166735,41.21685,2400.5,2400.3,0.41687]
[1730768167225,40.8,2400.5,2400.4,4.58246]
[1730768167424,3.25338255,2401.0,2400.4,4.1656]
[1730768167616,0.41682,2400.7,2400.5,0.89804]
[1730768167817,0.41683,2400.6,2400.5,0.4812]
[1730768168327,41.21683,2400.6,2400.5,0.89805]
[1730768168725,40.8,2400.6,2400.5,0.89805]
[1730768168914,41.21683,2400.6,2400.5,0.89805]
[1730768169420,0.4169,2400.2,2400.1,0.4994]
[1730768169616,0.4169,2400.2,2400.1,0.4867]
[1730768169817,0.4169,2400.2,2400.1,0.90362]
[1730768170823,0.41687,2400.4,2400.3,0.41688]
[1730768171818,0.41687,2400.4,2400.2,0.41689]
[1730768172018,0.41688,2400.3,2400.2,0.41689]
[1730768172523,0.41688,2400.3,2400.2,4.58329]
[1730768172729,40.8,2400.6,2400.4,0.41686]
[1730768172926,0.41685,2400.5,2400.4,0.41685]
[1730768173229,41.21684,2400.6,2400.4,0.41685]
[1730768173821,0.41685,2400.5,2400.4,0.41685]
[1730768175026,0.41689,2400.3,2400.2,0.4169]
[1730768176023,44.05338255,2400.6,2400.2,4.1664]
[1730768176024,40.8,2400.6,2400.2,4.1664]
[1730768176336,3.46238255,2401.1,2400.3,10.05764847]
[1730768176518,0.41678,2400.9,2400.8,0.41679]
[1730768177123,41.21678,2400.9,2400.8,0.41679]
[1730768177326,41.21678,2400.9,2400.7,1.3871]
[1730768177521,41.21678,2400.9,2400.7,0.9703]
[1730768177826,41.21678,2400.9,2400.4,1.56150623]
[1730768177827,4.1656,2400.8,2400.4,1.08290623]
[1730768178022,0.41691,2400.2,2400.1,0.41691]
[1730768178219,0.41692,2400.1,2400.0,0.9643]
[1730768178420,0.41692,2400.1,2400.0,1.53075168]
[1730768178731,0.41692,2400.1,2400.0,1.94768168]
[1730768178927,3.2078,2400.5,2400.0,1.53075168]
[1730768179130,0.41687,2400.4,2400.3,0.41688]
[1730768179333,0.4169,2400.2,2400.1,0.41691]
[1730768179525,0.4169,2400.2,2400.1,0.98368216]
[1730768179921,8.85527255,2400.6,2400.0,2.04720623]
[1730768180128,0.41687,2400.4,2400.3,0.41688]
[1730768180327,0.41687,2400.4,2400.2,0.41688]
[1730768180528,0.41687,2400.4,2400.3,0.98393364]
[1730768181433,0.41685,2400.5,2400.3,5.1506003]
[1730768181630,0.41685,2400.5,2400.4,0.9842003]
[1730768182735,1.352,2400.6,2400.5,0.41685]
[1730768183029,0.41682,2400.7,2400.5,0.5673403]
[1730768183230,40.8,2400.9,2400.6,1.5399603]
[1730768183535,41.21678,2400.9,2400.8,0.41679]
[1730768183831,41.21678,2400.9,2400.6,0.5558]
[1730768184034,0.4168,2400.8,2400.7,0.98422581]
[1730768185828,40.8,2400.9,2400.7,0.98422581]
[1730768185829,41.21679,2400.9,2400.7,0.98422581]
[1730768186134,41.21679,2400.9,2400.7,0.41681]
[1730768186434,0.41679,2400.9,2400.7,0.41681]
[1730768187028,0.41679,2400.8,2400.7,0.41681]
[1730768187226,0.41679,2400.8,2400.7,0.98436808]
[1730768187431,41.21677,2401.0,2400.8,0.41678]
[1730768187934,40.8,2401.0,2400.8,0.41678]
[1730768188137,0.41678,2400.9,2400.8,0.41678]
[1730768188738,3.2078,2401.2,2400.8,4.73219934]
[1730768188934,3.2078,2401.2,2400.9,0.98416934]
[1730768188935,0.41676,2401.0,2400.9,0.98416934]
[1730768189141,0.41676,2401.0,2400.9,0.56739934]
[1730768189433,0.41679,2400.8,2400.7,3.62461]
[1730768189735,0.41679,2400.9,2400.8,0.41679]
[1730768189942,44.0078,2401.2,2400.7,3.2078]
[1730768190235,40.8,2401.2,2401.1,0.41674]
[1730768190434,41.21674,2401.2,2401.1,0.41674]
[1730768190740,41.21674,2401.2,2401.1,1.00074]
[1730768191233,4.29505255,2401.6,2401.1,0.584]
[1730768191436,0.4167,2401.4,2401.3,0.4167]
[1730768191639,40.8,2401.4,2401.3,0.41671]
[1730768191831,40.8,2401.4,2401.3,0.98377382]
[1730768192232,0.41668,2401.5,2401.4,0.41669]
[1730768192836,41.21668,2401.5,2401.4,0.41669]
[1730768193031,40.8,2401.5,2401.4,0.41669]
[1730768193432,41.21667,2401.5,2401.4,0.41669]
[1730768194229,40.8,2401.5,2401.4,0.41669]
[1730768194437,40.8,2401.5,2401.4,4.58069]
[1730768195135,3.2078,2402.0,2401.4,4.58069]
[1730768195136,5.05368255,2402.1,2401.4,4.164]
[1730768195435,0.41664,2401.7,2401.6,0.41665]
[1730768195639,41.21664,2401.7,2401.6,0.41665]
[1730768195941,40.8,2401.7,2401.6,0.41665]
[1730768196134,0.4166,2402.0,2401.8,0.41661]
[1730768196438,3.25338255,2402.1,2401.8,0.41661]
[1730768196641,41.21659,2402.0,2401.8,0.41661]
[1730768197130,0.4166,2401.9,2401.8,0.41661]
[1730768198139,0.4166,2401.9,2401.8,0.96971]
[1730768198339,0.4166,2401.9,2401.8,0.5531]
[1730768198744,0.4166,2401.9,2401.8,0.96972]
[1730768199443,0.4166,2401.9,2401.8,0.5531]
[1730768199837,0.4166,2401.9,2401.8,0.96972]
[1730768200343,41.2166,2401.9,2401.8,0.96972]
[1730768200841,41.2166,2401.9,2401.8,0.5531]
[1730768201239,41.2166,2401.9,2401.8,0.96972]
[1730768202431,41.2166,2401.9,2401.8,0.5531]
[1730768203543,0.4166,2402.0,2401.9,0.4166]
[1730768204135,40.8,2402.2,2401.8,0.5531]
[1730768204331,0.4166,2402.0,2401.8,0.5531]
[1730768204536,0.41665,2401.7,2401.5,0.41666]
[1730768204844,4.29484255,2402.1,2401.3,3.7707]
[1730768204845,0.41659,2402.0,2401.3,3.7707]
[1730768205042,0.41666,2401.6,2401.5,0.41666]
[1730768205243,0.41659,2402.0,2401.3,3.7707]
[1730768205439,0.41665,2401.7,2401.6,0.41665]
[1730768205735,0.41664,2401.8,2401.3,3.7707]
[1730768205940,0.41664,2401.8,2401.3,4.81246]
[1730768206141,0.41664,2401.8,2401.6,0.41664]
[1730768206538,0.41664,2401.8,2401.3,4.81246]
[1730768206743,0.41664,2401.8,2401.7,0.41664]
[1730768208240,0.41661,2401.9,2401.8,0.41661]
[1730768208546,0.4166,2402.0,2401.6,3.2078]
[1730768208743,40.8,2402.2,2401.7,0.5324]
[1730768208948,0.41664,2401.7,2401.6,0.41665]
[1730768209443,3.25338255,2402.1,2401.4,0.5324]
[1730768209647,0.41666,2401.6,2401.5,0.41666]
[1730768210248,0.41665,2401.7,2401.6,0.41665]
[1730768211248,0.41661,2401.9,2401.8,0.41661]
[1730768211544,0.4166,2402.0,2401.9,0.4166]
[1730768213251,0.41662,2401.9,2401.7,0.41663]
[1730768213553,0.41662,2401.9,2401.7,0.41662]
[1730768213750,0.41662,2401.9,2401.8,0.41662]
[1730768213952,40.8,2402.2,2401.5,3.2078]
[1730768214244,41.8414,2402.2,2401.7,0.41663]
[1730768214453,0.41662,2401.9,2401.7,0.41663]
[1730768214645,0.41662,2401.9,2401.8,0.41662]
[1730768214848,40.8,2402.2,2401.8,0.41662]
[1730768215154,40.8,2402.2,2401.5,3.2078]
[1730768215348,0.41661,2401.9,2401.8,0.41662]
[1730768216445,0.41664,2401.7,2401.5,3.2078]
[1730768216747,4.29486255,2402.0,2401.5,3.62446]
[1730768216947,0.41666,2401.6,2401.5,3.62446]
[1730768217145,0.41666,2401.6,2401.5,3.2078]
[1730768217448,0.41671,2401.3,2401.2,3.2078]
[1730768218548,0.41671,2401.3,2401.2,3.62452]
[1730768218749,0.4167,2401.4,2401.3,0.4167]
[1730768219055,0.4167,2401.4,2401.3,0.41671]
[1730768219447,0.4167,2401.4,2401.2,3.2078]
[1730768219647,0.4167,2401.4,2401.2,3.62451]
[1730768220751,0.41671,2401.3,2401.2,3.62451]
[1730768220946,0.41671,2401.3,2401.2,3.62452]
[1730768221149,3.6987,2401.6,2400.9,3.7457]
[1730768221351,0.41675,2401.1,2400.9,3.7457]
[1730768221551,0.4167,2401.4,2400.9,3.7457]
[1730768221754,0.41669,2401.5,2401.3,0.41671]
[1730768221951,0.41662,2401.9,2401.7,0.41663]
[1730768222152,0.41662,2401.9,2401.4,0.5411]
[1730768222153,4.24925,2402.1,2401.5,0.41666]
[1730768222451,0.41665,2401.7,2401.5,0.97957]
[1730768223445,40.9932,2402.0,2401.5,0.5629]
[1730768223649,41.21659,2402.0,2401.9,0.4166]
[1730768223854,41.21659,2402.0,2401.5,3.7707]
[1730768223855,41.21659,2402.0,2401.8,0.41661]
[1730768224052,41.21659,2402.0,2401.5,4.81237]
[1730768224251,41.21659,2402.0,2401.9,0.4166]
[1730768224453,41.21659,2402.0,2401.5,4.81237]
[1730768224648,0.41664,2401.7,2401.5,0.97956]
[1730768224858,40.8,2402.0,2401.5,0.5629]
[1730768225248,0.4166,2401.9,2401.5,0.5629]
[1730768225456,0.41663,2401.8,2401.6,0.41665]
[1730768226259,40.8,2402.0,2401.5,0.97957]
[1730768226260,0.41666,2401.6,2401.5,0.97957]
[1730768226857,0.41666,2401.6,2401.5,5.14357]
[1730768227253,0.41666,2401.6,2401.5,0.5629]
[1730768227455,0.41666,2401.6,2401.1,3.2078]
[1730768227456,4.164,2401.6,2401.1,3.2078]
[1730768227654,0.41664,2401.7,2401.3,0.4167]
[1730768227860,0.41669,2401.5,2401.3,0.4167]
[1730768228261,0.41669,2401.4,2401.3,0.4167]
[1730768228752,0.41669,2401.4,2401.3,0.41669]
[1730768229151,0.41669,2401.4,2401.3,0.98384055]
[1730768229554,0.41668,2401.5,2401.4,0.41668]
[1730768230961,0.41668,2401.5,2401.4,0.98733753]
[1730768232263,3.4008,2401.9,2401.4,0.5708193]
[1730768232455,0.41665,2401.7,2401.6,0.41665]
[1730768232654,0.41667,2401.6,2401.5,0.41667]
[1730768232849,3.2078,2401.9,2401.6,0.41665]
[1730768232850,0.41665,2401.7,2401.6,0.41665]
[1730768233160,0.41666,2401.6,2401.3,1.08761439]
[1730768233361,0.41665,2401.7,2401.6,0.41665]
[1730768233861,0.41665,2401.7,2401.6,0.98782809]
[1730768234464,0.41665,2401.7,2401.6,0.98783809]
[1730768234656,0.41665,2401.7,2401.6,0.57117809]
[1730768234856,0.41665,2401.7,2401.6,0.98783809]
[1730768235165,0.41663,2401.8,2401.6,0.98783809]
[1730768235357,0.41663,2401.8,2401.7,0.57151475]
[1730768235555,0.41663,2401.8,2401.7,1.67681475]
[1730768235758,0.41663,2401.8,2401.7,1.1053]
[1730768236064,0.41663,2401.8,2401.7,1.67680629]
[1730768236961,0.41662,2401.9,2401.7,2.09343629]
[1730768237160,0.4166,2401.9,2401.8,0.57150629]
[1730768237361,0.4166,2401.9,2401.8,0.98812629]
[1730768237560,0.4166,2401.9,2401.8,0.57150629]
[1730768238072,40.8,2402.0,2401.9,0.4166]
[1730768238259,40.8,2402.0,2401.9,0.98810629]
[1730768238570,0.41659,2402.0,2401.9,1.90289731]
[1730768238970,41.21654,2402.3,2401.9,1.48629731]
[1730768239263,3.2078,2402.5,2402.4,0.41652]
[1730768239463,3.2078,2402.5,2402.4,0.98802629]
[1730768239657,3.2078,2402.5,2402.4,1.90252419]
[1730768239859,40.8,2402.9,2402.4,9.98940113]
[1730768240067,40.8,2402.9,2402.8,0.41645]
[1730768240370,40.8,2402.9,2402.8,0.98795629]
[1730768241573,40.8,2402.9,2402.8,5.14955629]
[1730768242072,0.41638,2403.2,2402.8,4.73310629]
[1730768242261,0.41642,2403.0,2402.8,0.98794629]
[1730768242568,0.41642,2403.0,2402.8,0.41644]
[1730768242765,0.41642,2403.0,2402.9,0.41643]
[1730768243170,0.41642,2403.0,2402.7,1.1336]
[1730768243775,0.41642,2403.0,2402.9,0.57054979]
[1730768244875,40.8,2403.3,2402.9,0.57054979]
[1730768245173,0.41641,2403.0,2402.9,0.98696979]
[1730768245470,0.41641,2403.0,2402.9,0.57054979]
[1730768246166,0.41641,2403.0,2402.8,0.41643]
[1730768246365,0.41645,2402.8,2402.7,1.1336]
[1730768246672,41.84093,2403.3,2402.7,1.55006]
[1730768246673,0.41644,2402.9,2402.7,1.55006]
[1730768246874,0.41645,2402.8,2402.7,1.55006]
[1730768247570,40.8,2403.3,2402.7,5.2952]
[1730768247764,0.41634,2403.5,2403.2,3.2078]
[1730768247966,0.41631,2403.6,2403.5,0.41632]
[1730768248169,0.41631,2403.6,2403.3,1.155]
[1730768248170,0.41634,2403.4,2403.3,1.155]
[1730768249371,0.41633,2403.5,2403.4,0.41634]
[1730768249570,0.41633,2403.5,2403.3,1.155]
[1730768249873,0.41633,2403.5,2403.4,0.41634]
[1730768250268,40.8,2403.6,2403.3,1.57135]
[1730768250579,0.41634,2403.4,2403.3,1.155]
[1730768251264,0.41634,2403.4,2403.3,1.57136]
[1730768251465,0.41634,2403.5,2403.3,1.57136]
[1730768251664,40.8,2403.6,2403.3,1.155]
[1730768251866,0.41634,2403.4,2403.3,1.155]
[1730768252072,0.41634,2403.4,2403.3,0.5779]
[1730768252970,0.41634,2403.4,2403.3,0.99426]
[1730768253774,40.8,2403.6,2403.3,0.99426]
[1730768253983,0.41634,2403.5,2403.3,0.99426]
[1730768254781,40.8,2403.6,2403.3,0.99426]
[1730768255072,0.41634,2403.4,2403.3,0.5779]
[1730768255482,0.41634,2403.5,2403.3,0.99426]
[1730768255671,40.8,2403.6,2403.3,0.5779]
[1730768255869,41.21632,2403.6,2403.5,0.41633]
[1730768256073,40.8,2403.6,2403.5,0.41633]
[1730768256273,40.8,2403.6,2403.4,0.542]
[1730768256574,40.8,2403.6,2403.3,0.5779]
[1730768256770,0.41634,2403.4,2403.3,0.5779]
[1730768257676,0.41641,2403.0,2402.9,0.529]
[1730768257871,1.04093,2403.3,2402.8,3.2078]
[1730768257872,0.41643,2402.9,2402.8,3.2078]
[1730768258975,4.79579241,2403.4,2402.9,0.41643]
[1730768258976,0.41641,2403.1,2402.9,0.41643]
[1730768259374,4.5158,2403.4,2402.9,0.41643]
[1730768259572,0.4164,2403.1,2402.9,0.94543]
[1730768259973,4.5158,2403.4,2402.9,0.529]
[1730768259974,0.41641,2403.0,2402.9,0.529]
[1730768262182,0.41643,2402.9,2402.8,3.62425]
[1730768262784,3.2078,2403.2,2402.7,0.5371]
[1730768263078,0.41645,2402.8,2402.7,0.5371]
[1730768263877,1.57542,2403.1,2402.6,3.77726435]
[1730768264078,0.41646,2402.7,2402.6,3.36079435]
[1730768264383,0.41646,2402.7,2402.6,3.77727435]
[1730768265480,0.41646,2402.7,2402.6,3.36079435]
[1730768265979,0.41646,2402.7,2402.6,3.2078]
[1730768266780,0.41646,2402.7,2402.6,3.62428]
[1730768267082,0.41646,2402.7,2402.6,3.2078]
[1730768269084,0.41648,2402.6,2402.5,1.24889435]
[1730768270282,0.41648,2402.6,2402.5,1.0959]
[1730768271081,0.41648,2402.6,2402.5,1.5124]
[1730768271802,0.41648,2402.6,2402.5,1.0959]
[1730768272779,0.41648,2402.6,2402.5,1.5124]
[1730768274288,4.29435255,2403.2,2402.5,1.5124]
[1730768274289,0.41645,2402.8,2402.7,0.41645]
[1730768274486,4.24877,2403.2,2402.9,0.41642]
[1730768274487,0.41643,2403.0,2402.9,0.41642]
[1730768274793,0.41645,2402.8,2402.7,0.41646]
[1730768274990,3.2078,2403.2,2402.6,0.5709]
[1730768275185,1.041,2403.1,2402.5,4.3037]
[1730768275396,0.41648,2402.6,2402.5,4.72018]
[1730768275688,0.4165,2402.5,2402.4,0.15299435]
[1730768276192,45.3789,2402.5,2402.4,0.15299435]
[1730768276385,44.9624,2402.5,2402.1,0.5432]
[1730768276588,0.26355565,2402.2,2402.1,0.5432]
[1730768277091,0.41654,2402.3,2402.1,0.95976]
[1730768277291,40.8,2402.2,2402.1,0.95976]
[1730768277588,1.308,2402.8,2402.1,1.12082602]
[1730768277791,0.41648,2402.7,2402.5,0.41649]
[1730768277993,40.8,2402.6,2402.2,0.582]
[1730768278290,40.8,2402.6,2402.5,0.4165]
[1730768278797,41.21648,2402.6,2402.3,3.2078]
[1730768279096,0.41651,2402.5,2402.3,3.2078]
[1730768279395,41.21649,2402.6,2402.4,0.41652]
[1730768279894,41.21649,2402.6,2402.5,0.568]
[1730768280081,0.41649,2402.6,2402.5,0.568]
[1730768280489,8.04779649,2403.0,2402.5,0.568]
[1730768280697,0.41647,2402.7,2402.6,0.5647]
[1730768281597,40.8,2402.8,2402.6,0.98117]
[1730768281795,0.41646,2402.7,2402.6,0.5647]
[1730768283087,40.8,2402.8,2402.6,0.5647]
[1730768283291,3.2078,2403.0,2402.6,4.7263]
[1730768283586,0.41644,2402.9,2402.7,1.12237158]
[1730768283793,0.41644,2402.9,2402.8,0.41645]
[1730768284186,0.41644,2402.9,2402.8,0.99565705]
[1730768284999,0.41644,2402.9,2402.8,0.57920705]
[1730768285189,0.41644,2402.9,2402.8,0.99565705]
[1730768285385,41.21642,2403.0,2402.8,0.99565705]
[1730768285590,41.21642,2403.0,2402.8,0.41645]
[1730768285786,0.41643,2402.9,2402.7,0.5434]
[1730768285994,0.41643,2402.9,2402.8,0.5793531]
[1730768290093,40.8,2403.0,2402.7,0.41646]
[1730768290291,0.41645,2402.8,2402.7,0.41646]
[1730768290502,0.41645,2402.8,2402.7,0.99591737]
[1730768290797,40.8,2403.0,2402.6,0.5647]
[1730768291002,0.41646,2402.7,2402.6,0.98118]
[1730768291203,0.41646,2402.7,2402.6,1.56066136]
[1730768292700,0.41646,2402.7,2402.6,1.14418136]
[1730768292895,0.41646,2402.7,2402.6,0.5647]
[1730768293300,0.41646,2402.7,2402.6,1.14423603]
[1730768294201,0.41646,2402.7,2402.6,0.98118]
[1730768294393,0.41646,2402.7,2402.6,1.14427361]
[1730768294593,0.41646,2402.7,2402.6,0.5647]
[1730768294993,0.41648,2402.6,2402.5,0.568]
[1730768295194,0.41648,2402.6,2402.5,1.14758756]
[1730768296396,0.41648,2402.6,2402.5,0.57958756]
[1730768298697,0.41648,2402.6,2402.5,0.57990412]
[1730768300199,4.2489,2402.9,2402.4,0.5357]
[1730768300400,0.41648,2402.6,2402.5,0.58012554]
[1730768305803,0.4165,2402.5,2402.4,0.5357]
[1730768305997,0.4165,2402.5,2402.4,1.11635459]
[1730768306198,0.4165,2402.5,2402.4,2.04540193]
[1730768309211,0.4165,2402.5,2402.4,0.5357]
[1730768309403,3.2078,2402.7,2402.4,0.5357]
[1730768309610,3.62427,2402.7,2402.6,0.41648]
[1730768309804,3.62427,2402.7,2402.5,0.41648]
[1730768310004,0.41648,2402.6,2402.5,0.41648]
[1730768310512,0.4165,2402.5,2402.4,2.03811191]
[1730768310710,3.2078,2402.7,2402.4,0.95221]
[1730768311017,3.62428,2402.7,2402.5,0.4165]
[1730768311207,0.41648,2402.6,2402.5,0.4165]
[1730768313317,0.41648,2402.6,2402.4,1.62160191]
[1730768313523,0.41648,2402.6,2402.5,1.92641576]
[1730768314405,0.41648,2402.6,2402.5,1.50991576]
[1730768315010,0.41648,2402.6,2402.5,1.50984103]
[1730768315416,0.41647,2402.7,2402.6,0.41648]
[1730768315612,0.41647,2402.7,2402.6,2.07274103]
[1730768317010,0.41647,2402.7,2402.6,1.50984103]
[1730768318413,46.54895213,2403.0,2402.5,1.08590191]
[1730768318414,0.41648,2402.6,2402.5,1.08590191]
[1730768319011,0.41648,2402.6,2402.5,1.50240191]
[1730768319714,0.41648,2402.6,2402.5,3.01219866]
[1730768320520,0.41648,2402.6,2402.5,2.59569866]
[1730768320820,0.41648,2402.6,2402.5,3.01219866]
[1730768323827,42.30010213,2403.0,2402.5,15.21444442]
[1730768323828,40.8,2403.0,2402.5,15.21444442]
[1730768324118,0.41643,2402.9,2402.8,1.50805096]
[1730768324330,0.41641,2403.1,2403.0,0.4164]
[1730768324517,4.4368,2403.5,2403.0,3.00989888]
[1730768324817,2.00690213,2403.6,2403.1,2.60139771]
[1730768324818,1.50010213,2403.6,2403.1,2.60139771]
[1730768325024,0.41636,2403.3,2403.2,1.50979675]
[1730768325220,0.41636,2403.3,2403.2,0.58069106]
[1730768325615,0.41636,2403.3,2403.2,0.79493878]
[1730768325816,0.41636,2403.3,2403.2,0.21424772]